[Event "*** Titled Tuesday 3|2 Blitz (Early)"]
[Site "Chess.com"]
[Date "2016.11.01"]
[Round "2"]
[White "Mbneu"]
[Black "GremioPrudente"]
[Result "1-0"]
[WhiteElo "2130"]
[BlackElo "2028"]
[TimeControl "180+2"]
[EndTime "11:20:28 PDT"]
[Termination "Mbneu won on time"]

1. d4 {[%clk 0:03:01.9]} 1... d5 {[%clk 0:02:58.9]} 2. c4 {[%clk 0:03:03.3]}
2... c6 {[%clk 0:02:59]} 3. Nc3 {[%clk 0:03:01.3]} 3... e6 {[%clk 0:02:59.8]} 4.
e4 {[%clk 0:03:00.7]} 4... dxe4 {[%clk 0:02:59.8]} 5. Nxe4 {[%clk 0:03:02.6]}
5... Nd7 {[%clk 0:03:01.1]} 6. Nf3 {[%clk 0:03:02.8]} 6... Ngf6 {[%clk
0:03:01.8]} 7. Bd3 {[%clk 0:03:03.5]} 7... Nxe4 {[%clk 0:02:58.1]} 8. Bxe4
{[%clk 0:03:05.4]} 8... Nf6 {[%clk 0:02:58.7]} 9. Bc2 {[%clk 0:03:05.7]} 9...
Bb4+ {[%clk 0:02:58.8]} 10. Bd2 {[%clk 0:03:06.3]} 10... Bxd2+ {[%clk
0:02:56.1]} 11. Qxd2 {[%clk 0:03:08.2]} 11... O-O {[%clk 0:02:57]} 12. O-O
{[%clk 0:03:07.6]} 12... b6 {[%clk 0:02:52.1]} 13. Rfd1 {[%clk 0:02:52.9]} 13...
Bb7 {[%clk 0:02:43.8]} 14. Qd3 {[%clk 0:02:49.7]} 14... g6 {[%clk 0:02:35.6]}
15. Ne5 {[%clk 0:02:48.2]} 15... Qd6 {[%clk 0:02:20.7]} 16. Qh3 {[%clk
0:02:32.9]} 16... Kg7 {[%clk 0:02:12.6]} 17. Rd3 {[%clk 0:02:28.5]} 17... c5
{[%clk 0:01:58.4]} 18. Ng4 {[%clk 0:02:22]} 18... Nxg4 {[%clk 0:01:54.1]} 19.
Qxg4 {[%clk 0:02:23.9]} 19... Rad8 {[%clk 0:01:46.7]} 20. Rad1 {[%clk
0:02:13.1]} 20... Qe7 {[%clk 0:01:37.2]} 21. h4 {[%clk 0:02:05.7]} 21... Rxd4
{[%clk 0:01:33.5]} 22. Rxd4 {[%clk 0:02:06.5]} 22... cxd4 {[%clk 0:01:34.5]} 23.
Rxd4 {[%clk 0:02:02.9]} 23... Rd8 {[%clk 0:01:24.5]} 24. h5 {[%clk 0:02:00.9]}
24... Rxd4 {[%clk 0:01:00.5]} 25. Qxd4+ {[%clk 0:02:01.4]} 25... e5 {[%clk
0:01:00.7]} 26. Qe3 {[%clk 0:01:50.6]} 26... Qc5 {[%clk 0:00:53]} 27. h6+ {[%clk
0:01:42.9]} 27... Kg8 {[%clk 0:00:45.8]} 28. Qg5 {[%clk 0:01:43]} 28... Qf8
{[%clk 0:00:23.7]} 29. Bb3 {[%clk 0:01:41.5]} 29... f6 {[%clk 0:00:19.1]} 30.
Qd2 {[%clk 0:01:38.1]} 30... Kh8 {[%clk 0:00:15.5]} 31. Qd7 {[%clk 0:01:34.7]}
31... Ba8 {[%clk 0:00:10.9]} 32. c5 {[%clk 0:01:34.1]} 32... bxc5 {[%clk
0:00:10.2]} 33. Qxa7 {[%clk 0:01:26.7]} 33... f5 {[%clk 0:00:04.8]} 34. Qc7
{[%clk 0:01:20.4]} 1-0

[Event "*** Titled Tuesday 3|2 Blitz (Early)"]
[Site "Chess.com"]
[Date "2016.11.01"]
[Round "2"]
[White "Drags95"]
[Black "Makalexa"]
[Result "1-0"]
[WhiteElo "2426"]
[BlackElo "2213"]
[TimeControl "180+2"]
[EndTime "11:20:41 PDT"]
[Termination "Drags95 won by resignation"]

1. d4 {[%clk 0:03:01.9]} 1... Nf6 {[%clk 0:00:36.5]} 2. c4 {[%clk 0:02:58.8]}
2... g6 {[%clk 0:00:38.4]} 3. Nc3 {[%clk 0:02:59.6]} 3... Bg7 {[%clk 0:00:40.3]}
4. e4 {[%clk 0:03:00.7]} 4... d6 {[%clk 0:00:39.9]} 5. Nf3 {[%clk 0:02:59.7]}
5... O-O {[%clk 0:00:40.6]} 6. Be2 {[%clk 0:03:01.2]} 6... Nc6 {[%clk
0:00:39.9]} 7. O-O {[%clk 0:02:56.8]} 7... e5 {[%clk 0:00:40.7]} 8. d5 {[%clk
0:02:58.3]} 8... Ne7 {[%clk 0:00:42.1]} 9. b4 {[%clk 0:02:58.5]} 9... a5 {[%clk
0:00:39.2]} 10. bxa5 {[%clk 0:02:56.4]} 10... Nd7 {[%clk 0:00:41.1]} 11. a4
{[%clk 0:02:55.8]} 11... f5 {[%clk 0:00:39.5]} 12. Ba3 {[%clk 0:02:56.2]} 12...
Nf6 {[%clk 0:00:39.9]} 13. Nd2 {[%clk 0:02:45.2]} 13... Bh6 {[%clk 0:00:36.6]}
14. c5 {[%clk 0:02:44.8]} 14... Kh8 {[%clk 0:00:15.4]} 15. Nc4 {[%clk
0:02:32.4]} 15... Nxe4 {[%clk 0:00:13.7]} 16. Nxe4 {[%clk 0:02:32.7]} 16... fxe4
{[%clk 0:00:15.6]} 17. cxd6 {[%clk 0:02:34.3]} 17... cxd6 {[%clk 0:00:12.1]} 18.
Bxd6 {[%clk 0:02:36.2]} 18... Ra6 {[%clk 0:00:12]} 19. Bxe5+ {[%clk 0:02:37.3]}
19... Bg7 {[%clk 0:00:10.2]} 20. Qd4 {[%clk 0:02:20.1]} 20... Bxe5 {[%clk
0:00:09.8]} 21. Qxe5+ {[%clk 0:02:17]} 21... Raf6 {[%clk 0:00:10.8]} 22. Rad1
{[%clk 0:02:14.6]} 22... Kg8 {[%clk 0:00:11.1]} 23. Qxe4 {[%clk 0:02:14.2]}
23... Nf5 {[%clk 0:00:11.4]} 24. Ne5 {[%clk 0:02:11.1]} 24... Qe7 {[%clk
0:00:11]} 25. Bf3 {[%clk 0:01:53.3]} 25... Nd6 {[%clk 0:00:11.9]} 26. Qe2 {[%clk
0:01:53]} 26... Bf5 {[%clk 0:00:09]} 27. Rfe1 {[%clk 0:01:52.4]} 27... Be4
{[%clk 0:00:06.6]} 28. Ng4 {[%clk 0:01:07.8]} 28... Rxf3 {[%clk 0:00:05.2]} 29.
gxf3 {[%clk 0:01:09.2]} 29... Rxf3 {[%clk 0:00:05.1]} 30. Qxf3 {[%clk
0:01:09.2]} 30... Bxf3 {[%clk 0:00:05.3]} 31. Rxe7 {[%clk 0:01:10.4]} 31... Bxg4
{[%clk 0:00:06.6]} 32. Rc1 {[%clk 0:01:02.6]} 1-0

[Event "*** Titled Tuesday 3|2 Blitz (Early)"]
[Site "Chess.com"]
[Date "2016.11.01"]
[Round "2"]
[White "Cayse"]
[Black "VSERGUEI"]
[Result "1-0"]
[WhiteElo "2602"]
[BlackElo "2563"]
[TimeControl "180+2"]
[EndTime "11:20:51 PDT"]
[Termination "Cayse won by checkmate"]

1. e4 {[%clk 0:03:01.9]} 1... e6 {[%clk 0:03:00.6]} 2. d4 {[%clk 0:03:02.1]}
2... d5 {[%clk 0:03:01.7]} 3. Nc3 {[%clk 0:03:02.8]} 3... Nf6 {[%clk 0:03:02.5]}
4. e5 {[%clk 0:03:03.1]} 4... Nfd7 {[%clk 0:03:03.7]} 5. f4 {[%clk 0:03:03.4]}
5... c5 {[%clk 0:03:04.8]} 6. Nf3 {[%clk 0:03:04.2]} 6... Nc6 {[%clk 0:03:06]}
7. Be3 {[%clk 0:03:05]} 7... Qb6 {[%clk 0:03:07.1]} 8. Na4 {[%clk 0:03:04.7]}
8... Qa5+ {[%clk 0:03:08.2]} 9. c3 {[%clk 0:03:05.7]} 9... b6 {[%clk 0:03:09.4]}
10. Bd2 {[%clk 0:02:52.8]} 10... c4 {[%clk 0:02:54]} 11. b4 {[%clk 0:02:52.6]}
11... Qa6 {[%clk 0:02:54.5]} 12. Nb2 {[%clk 0:02:50.4]} 12... b5 {[%clk
0:02:55]} 13. a4 {[%clk 0:02:50.7]} 13... Be7 {[%clk 0:02:54.1]} 14. Be2 {[%clk
0:02:46.1]} 14... O-O {[%clk 0:02:53.8]} 15. O-O {[%clk 0:02:46.7]} 15... f5
{[%clk 0:02:54.9]} 16. exf6 {[%clk 0:02:35.6]} 16... Nxf6 {[%clk 0:02:53.8]} 17.
Ne5 {[%clk 0:02:36.3]} 17... Ne4 {[%clk 0:02:50.2]} 18. Qc2 {[%clk 0:02:19.9]}
18... Nxe5 {[%clk 0:02:43.1]} 19. fxe5 {[%clk 0:02:17.3]} 19... Rxf1+ {[%clk
0:02:42.8]} 20. Rxf1 {[%clk 0:02:16.5]} 20... Bd7 {[%clk 0:02:38.7]} 21. a5
{[%clk 0:01:50.9]} 21... Be8 {[%clk 0:02:38]} 22. Nd1 {[%clk 0:01:41.3]} 22...
Bg6 {[%clk 0:02:38.5]} 23. Qc1 {[%clk 0:01:40.6]} 23... Rf8 {[%clk 0:02:31.9]}
24. Rxf8+ {[%clk 0:01:40.3]} 24... Bxf8 {[%clk 0:02:32.3]} 25. Be3 {[%clk
0:01:40.5]} 25... Qb7 {[%clk 0:02:30.7]} 26. Nf2 {[%clk 0:01:40.2]} 26... Qf7
{[%clk 0:02:28.9]} 27. Bg4 {[%clk 0:01:39.5]} 27... Nxf2 {[%clk 0:02:25.6]} 28.
Bxf2 {[%clk 0:01:40]} 28... Bf5 {[%clk 0:02:26.9]} 29. Bf3 {[%clk 0:01:40.5]}
29... Qg6 {[%clk 0:02:26.7]} 30. Bh4 {[%clk 0:01:38.4]} 30... Be4 {[%clk
0:02:26.4]} 31. Qf4 {[%clk 0:01:35.6]} 31... Bxf3 {[%clk 0:02:21.5]} 32. Qxf3
{[%clk 0:01:36.6]} 32... Qb1+ {[%clk 0:02:20.5]} 33. Kf2 {[%clk 0:01:37.4]}
33... h6 {[%clk 0:02:17.6]} 34. h3 {[%clk 0:01:27.7]} 34... a6 {[%clk
0:02:16.3]} 35. Bd8 {[%clk 0:01:25.5]} 35... Bxb4 {[%clk 0:02:06.1]} 36. cxb4
{[%clk 0:01:23.2]} 36... Qxb4 {[%clk 0:02:06.5]} 37. Kg3 {[%clk 0:01:12.4]}
37... c3 {[%clk 0:02:06.7]} 38. Qg4 {[%clk 0:01:13.1]} 38... Kf7 {[%clk
0:01:47.5]} 39. Qh5+ {[%clk 0:01:09.5]} 39... Kf8 {[%clk 0:01:48.2]} 40. Qd1
{[%clk 0:00:43.6]} 40... Qb2 {[%clk 0:01:46.7]} 41. Qf3+ {[%clk 0:00:38.8]}
41... Ke8 {[%clk 0:01:46.1]} 42. Bc7 {[%clk 0:00:28.8]} 42... c2 {[%clk
0:01:36.4]} 43. Bd6 {[%clk 0:00:29.6]} 43... c1=Q {[%clk 0:01:27.4]} 44. Qf8+
{[%clk 0:00:30.1]} 44... Kd7 {[%clk 0:01:28.6]} 45. Qe7+ {[%clk 0:00:31.2]}
45... Kc8 {[%clk 0:01:29.7]} 46. Qe8+ {[%clk 0:00:32.4]} 46... Kb7 {[%clk
0:01:28.6]} 47. Qb8+ {[%clk 0:00:33.1]} 47... Kc6 {[%clk 0:01:25.3]} 48. Qc7#
{[%clk 0:00:34]} 1-0

[Event "*** Titled Tuesday 3|2 Blitz (Early)"]
[Site "Chess.com"]
[Date "2016.11.01"]
[Round "2"]
[White "FairChess_on_YouTube"]
[Black "Blitzstream"]
[Result "1-0"]
[WhiteElo "2715"]
[BlackElo "2539"]
[TimeControl "180+2"]
[EndTime "11:21:26 PDT"]
[Termination "FairChess_on_YouTube won by checkmate"]

1. e4 {[%clk 0:03:01.9]} 1... d5 {[%clk 0:03:00.9]} 2. exd5 {[%clk 0:03:02.5]}
2... Qxd5 {[%clk 0:03:02.8]} 3. Nf3 {[%clk 0:03:04.1]} 3... Bg4 {[%clk
0:03:03.3]} 4. Be2 {[%clk 0:03:05]} 4... Nc6 {[%clk 0:03:03.8]} 5. Nc3 {[%clk
0:03:05.8]} 5... Qh5 {[%clk 0:03:03.5]} 6. d3 {[%clk 0:03:05.4]} 6... e6 {[%clk
0:03:04.4]} 7. Bf4 {[%clk 0:03:05.9]} 7... O-O-O {[%clk 0:03:04.4]} 8. h3 {[%clk
0:03:01.9]} 8... Nf6 {[%clk 0:02:02.7]} 9. Qd2 {[%clk 0:03:01.5]} 9... Bb4
{[%clk 0:01:57.5]} 10. O-O-O {[%clk 0:03:01.7]} 10... Bxf3 {[%clk 0:01:51.3]}
11. Bxf3 {[%clk 0:03:03.6]} 11... Qc5 {[%clk 0:01:52.9]} 12. a3 {[%clk
0:03:00.3]} 12... Bxa3 {[%clk 0:01:35.2]} 13. Bxc6 {[%clk 0:03:00.1]} 13... bxc6
{[%clk 0:01:27.3]} 14. Nb1 {[%clk 0:02:14]} 14... Bb4 {[%clk 0:01:07.2]} 15. c3
{[%clk 0:02:14.4]} 15... Nd5 {[%clk 0:00:58.3]} 16. Be3 {[%clk 0:02:10.7]} 16...
Nxe3 {[%clk 0:00:54.1]} 17. fxe3 {[%clk 0:02:11.8]} 17... Ba5 {[%clk 0:00:52.7]}
18. d4 {[%clk 0:02:10.3]} 18... Qg5 {[%clk 0:00:48.3]} 19. e4 {[%clk 0:01:34.7]}
19... Qxd2+ {[%clk 0:00:46.9]} 20. Nxd2 {[%clk 0:01:36.6]} 20... Bb6 {[%clk
0:00:43.8]} 21. Nc4 {[%clk 0:01:36.8]} 21... c5 {[%clk 0:00:37.6]} 22. Ne5
{[%clk 0:01:24.7]} 22... Rhf8 {[%clk 0:00:30]} 23. Nc6 {[%clk 0:01:21]} 23...
Rd6 {[%clk 0:00:28.5]} 24. d5 {[%clk 0:01:22.3]} 24... exd5 {[%clk 0:00:28.7]}
25. exd5 {[%clk 0:01:24.2]} 25... Re8 {[%clk 0:00:20.1]} 26. c4 {[%clk
0:01:23.8]} 26... Kb7 {[%clk 0:00:14.3]} 27. Rhe1 {[%clk 0:01:21]} 27... Rxe1
{[%clk 0:00:14.7]} 28. Rxe1 {[%clk 0:01:22.9]} 28... Ka6 {[%clk 0:00:13.2]} 29.
Kc2 {[%clk 0:01:10.8]} 29... Rf6 {[%clk 0:00:13.7]} 30. Re2 {[%clk 0:01:11]}
30... Ba5 {[%clk 0:00:13.4]} 31. Kb3 {[%clk 0:01:05.7]} 31... h5 {[%clk
0:00:12.1]} 32. Re8 {[%clk 0:00:50.7]} 32... Rf2 {[%clk 0:00:10.4]} 33. Re7
{[%clk 0:00:43]} 33... Rxg2 {[%clk 0:00:08.5]} 34. Rxf7 {[%clk 0:00:43.6]} 34...
g5 {[%clk 0:00:06.5]} 35. Ka4 {[%clk 0:00:41.9]} 35... Bb6 {[%clk 0:00:06.4]}
36. b4 {[%clk 0:00:34.8]} 36... cxb4 {[%clk 0:00:02.2]} 37. d6 {[%clk 0:00:36]}
37... cxd6 {[%clk 0:00:03.2]} 38. Nxb4# {[%clk 0:00:36.6]} 1-0

[Event "*** Titled Tuesday 3|2 Blitz (Early)"]
[Site "Chess.com"]
[Date "2016.11.01"]
[Round "2"]
[White "Andrejkin"]
[Black "Saitama_Hero"]
[Result "1-0"]
[WhiteElo "2165"]
[BlackElo "2101"]
[TimeControl "180+2"]
[EndTime "11:21:28 PDT"]
[Termination "Andrejkin won on time"]

1. e4 {[%clk 0:03:02]} 1... c5 {[%clk 0:02:59.4]} 2. Nf3 {[%clk 0:03:03]} 2...
Nc6 {[%clk 0:02:58.2]} 3. d4 {[%clk 0:03:03.2]} 3... cxd4 {[%clk 0:03:00.1]} 4.
Nxd4 {[%clk 0:03:05.1]} 4... Nf6 {[%clk 0:03:00.4]} 5. Nc3 {[%clk 0:03:06]} 5...
d6 {[%clk 0:03:01.9]} 6. f3 {[%clk 0:03:06.6]} 6... Qb6 {[%clk 0:02:59.1]} 7.
Nb3 {[%clk 0:03:03.9]} 7... e6 {[%clk 0:02:58.9]} 8. Na4 {[%clk 0:02:55.9]} 8...
Qc7 {[%clk 0:02:51.4]} 9. Nc3 {[%clk 0:02:55.4]} 9... Be7 {[%clk 0:02:51.7]} 10.
Be3 {[%clk 0:02:55.1]} 10... O-O {[%clk 0:02:52.1]} 11. Qd2 {[%clk 0:02:38.7]}
11... d5 {[%clk 0:02:53.5]} 12. exd5 {[%clk 0:02:33.4]} 12... Nxd5 {[%clk
0:02:54]} 13. Nxd5 {[%clk 0:02:30.5]} 13... exd5 {[%clk 0:02:55.9]} 14. O-O-O
{[%clk 0:02:32.2]} 14... Bf5 {[%clk 0:02:55.2]} 15. g4 {[%clk 0:02:28.9]} 15...
Bg6 {[%clk 0:02:54.6]} 16. h4 {[%clk 0:02:30]} 16... Nb4 {[%clk 0:02:32.2]} 17.
Bf4 {[%clk 0:02:27.7]} 17... Bd6 {[%clk 0:01:49.7]} 18. Bxd6 {[%clk 0:02:22.7]}
18... Qxd6 {[%clk 0:01:51.6]} 19. Bd3 {[%clk 0:02:24]} 19... Nxa2+ {[%clk
0:01:50.4]} 20. Kb1 {[%clk 0:02:21.7]} 20... Bxd3 {[%clk 0:01:51.6]} 21. Qxd3
{[%clk 0:02:21.5]} 21... Nb4 {[%clk 0:01:52.7]} 22. Qd2 {[%clk 0:02:19.3]} 22...
Rfc8 {[%clk 0:01:45.7]} 23. Nd4 {[%clk 0:02:11.6]} 23... Nc6 {[%clk 0:01:17.9]}
24. Nf5 {[%clk 0:01:57.8]} 24... Qf6 {[%clk 0:01:17.9]} 25. Qxd5 {[%clk
0:01:54.6]} 25... g6 {[%clk 0:01:12.5]} 26. Nd6 {[%clk 0:01:48.4]} 26... Nb4
{[%clk 0:01:06]} 27. Qxb7 {[%clk 0:01:41.7]} 27... Rab8 {[%clk 0:00:49.8]} 28.
g5 {[%clk 0:01:39.7]} 28... Qf4 {[%clk 0:00:36.9]} 29. Qxa7 {[%clk 0:01:35.6]}
29... Rd8 {[%clk 0:00:22.4]} 30. Qd4 {[%clk 0:01:31.3]} 30... Qxf3 {[%clk
0:00:17.2]} 31. h5 {[%clk 0:01:31.7]} 31... Qc6 {[%clk 0:00:14.7]} 32. Rh2
{[%clk 0:01:30]} 32... Qa4 {[%clk 0:00:13.5]} 33. h6 {[%clk 0:01:28.1]} 33...
Qa2+ {[%clk 0:00:12.2]} 34. Kc1 {[%clk 0:01:29.5]} 34... f6 {[%clk 0:00:07.7]}
35. Qxf6 {[%clk 0:01:22.4]} 35... Rd7 {[%clk 0:00:08.3]} 36. Rd4 {[%clk
0:00:58.7]} 36... Nc6 {[%clk 0:00:05.5]} 37. Rf4 {[%clk 0:00:55.1]} 37... Qa1+
{[%clk 0:00:03.3]} 38. Kd2 {[%clk 0:00:56.3]} 38... Qa5+ {[%clk 0:00:03.3]} 39.
Ke2 {[%clk 0:00:54.7]} 39... Qc5 {[%clk 0:00:05.2]} 40. Qe6+ {[%clk 0:00:53.2]}
40... Kh8 {[%clk 0:00:05.6]} 41. Qxd7 {[%clk 0:00:53.4]} 41... Qe5+ {[%clk
0:00:03.7]} 42. Kd1 {[%clk 0:00:52.4]} 1-0

[Event "*** Titled Tuesday 3|2 Blitz (Early)"]
[Site "Chess.com"]
[Date "2016.11.01"]
[Round "2"]
[White "SavelijTartakover"]
[Black "Zaven_ChessMood"]
[Result "0-1"]
[WhiteElo "2455"]
[BlackElo "2588"]
[TimeControl "180+2"]
[EndTime "11:21:39 PDT"]
[Termination "Zaven_ChessMood won by resignation"]

1. Nf3 {[%clk 0:02:02.3]} 1... d5 {[%clk 0:02:59.2]} 2. d4 {[%clk 0:02:02.7]}
2... Nf6 {[%clk 0:02:57.3]} 3. c4 {[%clk 0:02:03.2]} 3... c6 {[%clk 0:02:58.5]}
4. Nc3 {[%clk 0:02:03.5]} 4... dxc4 {[%clk 0:02:59.1]} 5. a4 {[%clk 0:02:03.6]}
5... Bf5 {[%clk 0:02:59.1]} 6. Ne5 {[%clk 0:02:03.9]} 6... Nbd7 {[%clk
0:02:59.4]} 7. Nxc4 {[%clk 0:02:04.3]} 7... Qc7 {[%clk 0:03:00.6]} 8. g3 {[%clk
0:02:04.3]} 8... e5 {[%clk 0:03:01.5]} 9. dxe5 {[%clk 0:02:04.7]} 9... Nxe5
{[%clk 0:03:02.4]} 10. Bf4 {[%clk 0:02:06.1]} 10... Nfd7 {[%clk 0:03:03.1]} 11.
Bg2 {[%clk 0:02:05.7]} 11... g5 {[%clk 0:03:03.8]} 12. Ne3 {[%clk 0:02:06.5]}
12... gxf4 {[%clk 0:03:03.5]} 13. Nxf5 {[%clk 0:02:07.9]} 13... O-O-O {[%clk
0:03:04.6]} 14. Qc2 {[%clk 0:02:08.7]} 14... Ng4 {[%clk 0:03:04.4]} 15. O-O
{[%clk 0:02:07.2]} 15... fxg3 {[%clk 0:03:00.6]} 16. hxg3 {[%clk 0:02:07.3]}
16... h5 {[%clk 0:03:01.4]} 17. Bh3 {[%clk 0:01:58.8]} 17... Kb8 {[%clk
0:02:57.5]} 18. a5 {[%clk 0:01:57.6]} 18... a6 {[%clk 0:02:57.2]} 19. Ne4 {[%clk
0:01:52.7]} 19... Nde5 {[%clk 0:02:46.6]} 20. Qc3 {[%clk 0:01:41]} 20... Re8
{[%clk 0:02:32.1]} 21. Bxg4 {[%clk 0:01:33]} 21... hxg4 {[%clk 0:02:29.7]} 22.
Kg2 {[%clk 0:01:33.5]} 22... Qd7 {[%clk 0:02:20]} 23. Ne3 {[%clk 0:01:20.7]}
23... Rh6 {[%clk 0:02:08.5]} 24. Rh1 {[%clk 0:01:15.9]} 24... Rhe6 {[%clk
0:02:01.6]} 25. Nc5 {[%clk 0:01:10.6]} 25... Bxc5 {[%clk 0:02:00.6]} 26. Qxc5
{[%clk 0:01:11.2]} 26... Qd2 {[%clk 0:01:57.4]} 27. Rae1 {[%clk 0:00:58.9]}
27... Qxb2 {[%clk 0:01:41.6]} 28. Rh4 {[%clk 0:00:57.6]} 28... Qb5 {[%clk
0:01:37.1]} 29. Qc3 {[%clk 0:00:51.5]} 29... f5 {[%clk 0:01:34.1]} 30. Rh5
{[%clk 0:00:46.5]} 30... c5 {[%clk 0:01:28.7]} 31. Kg1 {[%clk 0:00:38]} 31...
Qc6 {[%clk 0:01:22.5]} 32. Rc1 {[%clk 0:00:34.6]} 32... Nd7 {[%clk 0:01:16.6]}
33. Qg7 {[%clk 0:00:29.4]} 33... Rxe3 {[%clk 0:01:12.1]} 34. fxe3 {[%clk
0:00:30.1]} 34... Rxe3 {[%clk 0:01:10.1]} 35. Kf2 {[%clk 0:00:29.3]} 35... Qe6
{[%clk 0:01:07.8]} 36. Rc2 {[%clk 0:00:29.8]} 36... f4 {[%clk 0:01:05.9]} 37.
gxf4 {[%clk 0:00:27]} 37... g3+ {[%clk 0:01:04.6]} 38. Kf1 {[%clk 0:00:28.4]}
38... Rb3 {[%clk 0:00:51.1]} 39. Rh8+ {[%clk 0:00:15.7]} 39... Ka7 {[%clk
0:00:49.1]} 40. Qg8 {[%clk 0:00:16.7]} 40... Rb1+ {[%clk 0:00:46.3]} 41. Kg2
{[%clk 0:00:17.6]} 41... Qe4+ {[%clk 0:00:45.4]} 42. Kh3 {[%clk 0:00:18]} 42...
Rh1+ {[%clk 0:00:44.5]} 43. Kg4 {[%clk 0:00:18.6]} 43... Nf6+ {[%clk 0:00:45.2]}
0-1

[Event "*** Titled Tuesday 3|2 Blitz (Early)"]
[Site "Chess.com"]
[Date "2016.11.01"]
[Round "2"]
[White "Kawhi_Leonard2"]
[Black "FearlessKing64"]
[Result "1/2-1/2"]
[WhiteElo "2059"]
[BlackElo "2152"]
[TimeControl "180+2"]
[EndTime "11:21:46 PDT"]
[Termination "Game drawn by agreement"]

1. e4 {[%clk 0:03:02]} 1... c5 {[%clk 0:03:00.5]} 2. Nf3 {[%clk 0:03:01.9]} 2...
d6 {[%clk 0:03:01.6]} 3. d4 {[%clk 0:03:02.3]} 3... cxd4 {[%clk 0:03:03.5]} 4.
Nxd4 {[%clk 0:03:03.3]} 4... Nf6 {[%clk 0:03:05.2]} 5. Nc3 {[%clk 0:03:04.6]}
5... a6 {[%clk 0:03:06.8]} 6. Be2 {[%clk 0:03:05.9]} 6... e5 {[%clk 0:03:07.6]}
7. Nb3 {[%clk 0:03:06.9]} 7... Be6 {[%clk 0:03:07.8]} 8. f4 {[%clk 0:03:07.9]}
8... Qc7 {[%clk 0:03:06.7]} 9. g4 {[%clk 0:03:08.8]} 9... exf4 {[%clk
0:02:56.3]} 10. Bxf4 {[%clk 0:03:09.4]} 10... h6 {[%clk 0:02:54]} 11. g5 {[%clk
0:02:55.4]} 11... hxg5 {[%clk 0:02:53.9]} 12. Bxg5 {[%clk 0:02:56.6]} 12... Be7
{[%clk 0:02:51.7]} 13. Qd2 {[%clk 0:02:57.6]} 13... Nc6 {[%clk 0:02:45.1]} 14.
O-O-O {[%clk 0:02:58.4]} 14... O-O-O {[%clk 0:02:44.7]} 15. h4 {[%clk 0:02:56]}
15... Kb8 {[%clk 0:02:39.9]} 16. Nd5 {[%clk 0:02:50]} 16... Bxd5 {[%clk
0:02:32.5]} 17. exd5 {[%clk 0:02:51]} 17... Ne5 {[%clk 0:02:31.3]} 18. Kb1
{[%clk 0:02:48.8]} 18... Rc8 {[%clk 0:02:28.3]} 19. Nd4 {[%clk 0:02:44.4]} 19...
Ne4 {[%clk 0:02:18]} 20. Qf4 {[%clk 0:02:38.4]} 20... Bxg5 {[%clk 0:02:08.9]}
21. hxg5 {[%clk 0:02:38.8]} 21... Rxh1 {[%clk 0:02:09.4]} 22. Rxh1 {[%clk
0:02:39.6]} 22... Nc5 {[%clk 0:01:53.9]} 23. Rh7 {[%clk 0:02:29.6]} 23... g6
{[%clk 0:01:54.8]} 24. a3 {[%clk 0:02:24.4]} 24... Qb6 {[%clk 0:01:52.3]} 25.
Ka1 {[%clk 0:01:27.6]} 25... Na4 {[%clk 0:01:45.5]} 26. b3 {[%clk 0:01:28.3]}
26... Nc3 {[%clk 0:01:34.4]} 27. Bg4 {[%clk 0:01:24.2]} 27... Nxd5 {[%clk
0:01:24.3]} 28. Qe4 {[%clk 0:00:51.3]} 28... Nxg4 {[%clk 0:01:21]} 29. Qxg4
{[%clk 0:00:51.9]} 29... Qc5 {[%clk 0:01:18.3]} 30. Kb2 {[%clk 0:00:33.6]} 30...
Qc3+ {[%clk 0:01:13.6]} 31. Kb1 {[%clk 0:00:34.6]} 31... Ne3 {[%clk 0:01:07.5]}
32. Qe4 {[%clk 0:00:34.1]} 32... Qe1+ {[%clk 0:01:03.3]} 33. Ka2 {[%clk
0:00:34.9]} 33... Nxc2 {[%clk 0:00:58.8]} 34. Qxe1 {[%clk 0:00:33.7]} 34... Nxe1
{[%clk 0:00:59.5]} 35. Rxf7 {[%clk 0:00:35.1]} 35... Nc2 {[%clk 0:00:52.4]} 36.
Ne6 {[%clk 0:00:28.2]} 36... Re8 {[%clk 0:00:50.7]} 37. Rf6 {[%clk 0:00:29]}
37... Rg8 {[%clk 0:00:45.4]} 38. Nf4 {[%clk 0:00:26.2]} 38... Ne3 {[%clk
0:00:34.4]} 39. Rxd6 {[%clk 0:00:23.8]} 39... Rf8 {[%clk 0:00:28.3]} 40. Rf6
{[%clk 0:00:24.2]} 40... Rd8 {[%clk 0:00:26.6]} 41. Nxg6 {[%clk 0:00:21.5]}
41... Rd2+ {[%clk 0:00:27.7]} 42. Kb1 {[%clk 0:00:22.8]} 42... Rg2 {[%clk
0:00:26.3]} 43. Re6 {[%clk 0:00:20.5]} 43... Rxg5 {[%clk 0:00:20.4]} 44. Rxe3
{[%clk 0:00:20.8]} 44... Rxg6 {[%clk 0:00:21.3]} 45. Kb2 {[%clk 0:00:22.5]}
45... Rc6 {[%clk 0:00:17.9]} 1/2-1/2

[Event "*** Titled Tuesday 3|2 Blitz (Early)"]
[Site "Chess.com"]
[Date "2016.11.01"]
[Round "2"]
[White "BillieKimbah"]
[Black "swayamsm"]
[Result "0-1"]
[WhiteElo "2563"]
[BlackElo "2618"]
[TimeControl "180+2"]
[EndTime "11:21:51 PDT"]
[Termination "swayamsm won by resignation"]

1. d4 {[%clk 0:03:00.9]} 1... Nf6 {[%clk 0:02:59.8]} 2. Bf4 {[%clk 0:03:00.9]}
2... e6 {[%clk 0:02:57]} 3. e3 {[%clk 0:03:01.2]} 3... b6 {[%clk 0:02:57.8]} 4.
Nf3 {[%clk 0:02:59.6]} 4... Bb7 {[%clk 0:02:59.3]} 5. h3 {[%clk 0:03:00.5]} 5...
Be7 {[%clk 0:03:00.6]} 6. Bd3 {[%clk 0:03:00.6]} 6... O-O {[%clk 0:03:01.3]} 7.
O-O {[%clk 0:03:01.4]} 7... c5 {[%clk 0:03:02.9]} 8. c3 {[%clk 0:03:02]} 8... d6
{[%clk 0:03:04]} 9. Qe2 {[%clk 0:02:58.7]} 9... Nbd7 {[%clk 0:03:04.5]} 10. Bh2
{[%clk 0:02:56.7]} 10... Re8 {[%clk 0:03:05.7]} 11. e4 {[%clk 0:02:54.6]} 11...
Bf8 {[%clk 0:02:59.3]} 12. e5 {[%clk 0:02:43.2]} 12... dxe5 {[%clk 0:02:48.4]}
13. dxe5 {[%clk 0:02:44.1]} 13... Nd5 {[%clk 0:02:47]} 14. Nbd2 {[%clk 0:02:44]}
14... g6 {[%clk 0:02:35.6]} 15. Ne4 {[%clk 0:02:16.4]} 15... Qc7 {[%clk
0:01:35.2]} 16. Rad1 {[%clk 0:02:14.3]} 16... Rad8 {[%clk 0:01:31.3]} 17. h4
{[%clk 0:02:07.7]} 17... Bc6 {[%clk 0:01:25.3]} 18. h5 {[%clk 0:02:04.5]} 18...
Bg7 {[%clk 0:01:26.6]} 19. hxg6 {[%clk 0:01:56.2]} 19... hxg6 {[%clk 0:01:14.8]}
20. Nd6 {[%clk 0:00:48.6]} 20... Rf8 {[%clk 0:01:05.5]} 21. a3 {[%clk
0:00:44.1]} 21... Bh6 {[%clk 0:01:02.3]} 22. Be4 {[%clk 0:00:35.5]} 22... Nf4
{[%clk 0:00:53.6]} 23. Qc4 {[%clk 0:00:32.2]} 23... Nxe5 {[%clk 0:00:44.6]} 24.
Nxe5 {[%clk 0:00:31.9]} 24... Bd5 {[%clk 0:00:41.4]} 25. Bxd5 {[%clk 0:00:27.2]}
25... exd5 {[%clk 0:00:43.3]} 26. Qa4 {[%clk 0:00:16.1]} 26... Rxd6 {[%clk
0:00:40]} 27. Kh1 {[%clk 0:00:17.6]} 27... Re6 {[%clk 0:00:31.8]} 28. Ng4 {[%clk
0:00:18.2]} 28... Bg5 {[%clk 0:00:32.8]} 29. Rxd5 {[%clk 0:00:17.5]} 29... Qb7
{[%clk 0:00:30.2]} 30. Bxf4 {[%clk 0:00:06.6]} 30... Qxd5 {[%clk 0:00:30.2]} 31.
Bg3 {[%clk 0:00:07.7]} 31... Kg7 {[%clk 0:00:26.9]} 32. Nh2 {[%clk 0:00:08.5]}
32... Re4 {[%clk 0:00:25.8]} 33. Qxa7 {[%clk 0:00:09.2]} 33... Bf4 {[%clk
0:00:24.7]} 34. Qxb6 {[%clk 0:00:08]} 34... Rh8 {[%clk 0:00:25.1]} 35. Kg1
{[%clk 0:00:06.9]} 35... Qh5 {[%clk 0:00:19.1]} 36. Qc6 {[%clk 0:00:03.5]} 36...
Bxg3 {[%clk 0:00:17.1]} 37. fxg3 {[%clk 0:00:05.1]} 37... Qxh2+ {[%clk
0:00:16.8]} 38. Kf2 {[%clk 0:00:06.7]} 38... Re6 {[%clk 0:00:17.4]} 0-1